fUST/lending_fUST_20260415
["ID","MTS","AMOUNT","RATE_DAILY","PERIOD"]
[420516924,1776209439920,-500.0,0.00010683,2]
[420516925,1776209439945,-333.37943953,0.00010683,2]
[420516926,1776209439978,-277.2782339,0.00010683,2]
[420516927,1776209440023,-238.73,0.00010685,2]
[420516928,1776209440061,-299.15004856,0.00010756,2]
[420516929,1776209440096,-120719.91807855,0.00010757,2]
[420516930,1776209440111,-9688.46026149,0.00010758,2]
[420516931,1776209440166,-16325.69923307,0.00010758,2]
[420516932,1776209440206,-8510.47459472,0.00010758,2]
[420516934,1776209441315,-863.49330725,0.00010758,2]
[420516985,1776209448329,-12573.61627025,0.00010758,2]
[420516986,1776209448344,-2700.0000006,0.00010758,2]
[420516989,1776209724377,237.33,0.00026867,120]
[420516990,1776209827423,218.66524445,0.00020889,120]
[420516992,1776210187834,21000.0,0.0002,120]
[420516999,1776210632703,-1580.26245559,8.669e-05,2]
[420517002,1776210632815,-5.34376078,8.669e-05,2]
[420517004,1776210632839,-5000.0,8.757e-05,2]
[420517006,1776210632853,-543.0,8.757e-05,2]
[420517008,1776210632877,-169.35902398,8.89e-05,2]
[420517009,1776210632889,-184.0,9.729e-05,2]
[420517010,1776210632901,-441.0,9.729e-05,2]
[420517011,1776210632919,-482.90346828,0.000104,2]
[420517012,1776210632931,-475.77372459,0.000104,2]
[420517013,1776210632942,-352.91232243,0.000105,2]
[420517017,1776210638226,-428.47,0.000105,2]
[420517020,1776210638326,-648.90146994,0.000105,2]
[420517021,1776210638339,-884.09853006,0.000105,2]
[420517022,1776210638365,-2640.9796478,0.000105,2]
[420517023,1776210638383,-3851.43392385,0.000105,2]
[420517024,1776210638398,-3483.38097003,0.000105,2]
[420517025,1776210638411,-3198.72243195,0.000105,2]
[420517026,1776210638434,-160.0,0.00010506,2]
[420517027,1776210638457,-370.42159947,0.00010557,2]
[420517028,1776210638481,-500.0,0.00010557,2]
[420517029,1776210638524,-500.0,0.00010557,2]
[420517030,1776210638611,-500.0,0.00010557,2]
[420517031,1776210638776,-571.05859391,0.00010557,2]
[420517032,1776210638867,-500.0,0.00010557,2]
[420517033,1776210638904,-500.0,0.00010557,2]
[420517034,1776210638919,-450.0,0.00010557,2]
[420517035,1776210638954,-28272.98849901,0.00010558,2]
[420517064,1776210643064,-1080.0292975,0.00010558,2]
[420517066,1776210643077,-587.80325138,0.00010558,2]
[420517068,1776210643088,-642.99355765,0.00010558,2]
[420517083,1776210643237,-124083.77758493,0.00010558,2]
[420517086,1776210643249,-43966.37526459,0.00010558,2]
[420517088,1776210643261,-585.97660249,0.00010558,2]
[420517090,1776210643278,-7374.82932665,0.00010558,2]
[420517104,1776210646291,-46559.09479274,0.00010558,2]
[420517106,1776210646643,-10428.29472078,0.00010558,2]
[420517107,1776210646670,-355.29952011,0.00010558,2]
[420517108,1776210646701,-485.51042426,0.00010558,2]
[420517109,1776210646734,-6168.22493245,0.00010558,2]
[420517110,1776210646768,-60000.0,0.00010558,2]
[420517111,1776210646782,-637.00774766,0.00010558,2]
[420517113,1776211151274,1700.3061,0.00027397,120]
[420517116,1776211457893,1000.0,0.00027397,120]
[420517117,1776211475442,1000.0,0.00027397,120]
[420517118,1776211493477,1000.0,0.00027397,120]
[420517119,1776211633728,219.50890919,0.00019782,120]
[420517120,1776211634312,219.50890919,0.00019892,120]
[420517132,1776211778771,10000.0,0.00027397,120]
[420517133,1776211802815,3300.0,0.00027397,120]
[420517142,1776211831939,-397.91517571,7.6e-05,2]
[420517143,1776211831955,-3028.70034939,7.6e-05,2]
[420517144,1776211831969,-5002.80979833,7.6e-05,2]
[420517145,1776211831980,-573.72034567,7.6e-05,2]
[420517146,1776211831992,-677.26267608,7.6e-05,2]
[420517147,1776211832005,-305.668248,7.6e-05,2]
[420517148,1776211832018,-665.05160848,7.6e-05,2]
[420517149,1776211832030,-3541.28686708,7.6e-05,2]
[420517150,1776211832060,-659.19526039,7.6e-05,2]
[420517151,1776211832070,-527.0,7.6e-05,2]
[420517152,1776211832081,-169.5118435,7.896e-05,2]
[420517153,1776211832090,-160.0,9.678e-05,2]
[420517154,1776211832102,-441.0,9.729e-05,2]
[420517155,1776211832112,-184.0,9.729e-05,2]
[420517156,1776211832122,-200.02397534,9.896e-05,2]
[420517157,1776211832132,-309.71845514,0.000102,2]
[420517158,1776211832142,-3936.99234406,0.00010257,2]
[420517159,1776211838494,-551.20098473,7.524e-05,10]
[420517160,1776211838510,-3746.24925059,0.00010257,2]
[420517161,1776211838548,-136.7326326,0.00010257,2]
[420517162,1776211838571,-185.91767217,0.00010258,2]
[420517163,1776211838592,-389202.37761771,0.00010258,2]
[420517164,1776211838623,-971461.60358574,0.00010258,2]
[420517165,1776211838636,-82211.12942679,0.00010258,2]
[420517166,1776211838758,-28999.94273968,0.00010258,2]
[420517167,1776211838774,-3191.72976468,0.00010258,2]
[420517207,1776211843480,-9115.23726005,0.00010258,2]
[420517214,1776211846501,-5173.0,0.00010258,2]
[420517216,1776212021932,555.0,0.00027397,120]
[420517217,1776212097614,100000.0,0.00027397,120]
[420517218,1776212122377,90000.0,0.00027397,120]
[420517219,1776212148435,110000.0,0.00027397,120]
[420517220,1776212190744,10000.0,0.0002739,120]
[420517221,1776212207387,100000.0,0.00027397,120]
[420517222,1776212236986,4000.0,0.00027397,120]
[420517223,1776212239911,10000.0,0.0002739,120]
[420517224,1776212309401,16689.0,0.0002739,120]
[420517225,1776212795814,450.0,0.00027397,120]
[420517285,1776213038518,-575.9666368,8.812e-05,10]
[420517288,1776213038574,-453.0,8.812e-05,10]
[420517289,1776213038793,-3585.36740699,8.812e-05,10]
[420517290,1776213038833,-385.66595621,8.812e-05,10]
[420517291,1776213038848,-165.66112713,9.118e-05,2]
[420517292,1776213038859,-548.0,9.118e-05,2]
[420517293,1776213038871,-665.59433755,9.361e-05,2]
[420517294,1776213038887,-876.31009215,9.361e-05,2]
[420517295,1776213038900,-575.71258763,9.641e-05,2]
[420517296,1776213038911,-2300.54750017,9.641e-05,2]
[420517297,1776213038924,-500.0,9.744e-05,2]
[420517298,1776213038935,-5000.0,9.745e-05,2]
[420517299,1776213038951,-5000.0,9.745e-05,2]
[420517300,1776213038965,-5000.0,9.745e-05,2]
[420517301,1776213038974,-5000.0,9.745e-05,2]
[420517302,1776213038994,-3492.51205528,9.745e-05,2]
[420517303,1776213039009,-1507.48794472,9.745e-05,2]
[420517304,1776213039019,-160.0,9.761e-05,2]
[420517305,1776213039039,-50000.0,9.771e-05,2]
[420517306,1776213039050,-575.85,9.771e-05,2]
[420517307,1776213039061,-553.58035243,9.774e-05,2]
[420517308,1776213039081,-4981.31367511,9.797e-05,7]
[420517309,1776213039093,-292.82,9.806e-05,28]
[420517310,1776213039102,-441.0,9.812e-05,2]
[420517311,1776213039125,-184.0,9.812e-05,2]
[420517312,1776213039138,-186.554,0.00010034,2]
[420517313,1776213039151,-403533.42309592,0.00010058,2]
[420517314,1776213039172,-500.0,0.00010073,2]
[420517315,1776213039182,-500.0,0.00010073,2]
[420517316,1776213039199,-540.17975115,0.00010149,2]
[420517317,1776213039217,-2158.5582856,0.00010149,2]
[420517318,1776213039228,-500.0,0.00010173,2]
[420517319,1776213039258,-1085.7373299,0.00010289,2]
[420517320,1776213039269,-454.0594758,0.00010391,2]
[420517321,1776213039285,-2150.738,0.00010409,2]
[420517322,1776213039309,-250.0,0.00010411,2]
[420517323,1776213039324,-173.8711502,0.00010411,2]
[420517324,1776213039339,-355.0,0.00010456,2]
[420517325,1776213039355,-234056.37114901,0.00010457,2]
[420517326,1776213039368,-300.0,0.00010461,2]
[420517327,1776213039379,-300.0,0.00010461,2]
[420517328,1776213039398,-300.0,0.00010461,2]
[420517329,1776213039417,-300.0,0.00010461,2]
[420517330,1776213039445,-300.0,0.00010461,2]
[420517331,1776213039460,-300.0,0.00010461,2]
[420517332,1776213039475,-300.0,0.00010461,2]
[420517333,1776213039504,-300.0,0.00010461,2]
[420517334,1776213039515,-300.0,0.00010461,2]
[420517335,1776213039551,-300.0,0.00010461,2]
[420517336,1776213039578,-300.0,0.00010461,2]
[420517337,1776213039594,-300.0,0.00010461,2]
[420517338,1776213039620,-300.0,0.00010461,2]
[420517339,1776213039638,-300.0,0.00010461,2]
[420517340,1776213039652,-300.0,0.00010461,2]
[420517341,1776213039674,-600.0,0.00010461,2]
[420517342,1776213039689,-500.70567814,0.00010473,2]
[420517343,1776213039707,-500.0,0.00010473,2]
[420517344,1776213039721,-500.0,0.00010473,2]
[420517345,1776213039736,-500.0,0.00010473,2]
[420517346,1776213039759,-1000.0,0.00010621,2]
[420517347,1776213039773,-1000.0,0.00010621,2]
[420517348,1776213039786,-359.89288976,0.00010683,2]
[420517349,1776213039804,-348.91223689,0.00010683,2]
[420517350,1776213039824,-1439.57155903,0.00010683,2]
[420517351,1776213039835,-3239.03600781,0.00010683,2]
[420517352,1776213039849,-5758.28623611,0.00010683,2]
[420517353,1776213039872,-8988.32492168,0.00010683,2]
[420517354,1776213039887,-151.5,0.00010684,2]
[420517355,1776213039907,-151.5,0.00010684,2]
[420517356,1776213039924,-154.11579919,0.00010684,2]
[420517357,1776213039947,-500.0,0.00010721,2]
[420517358,1776213039963,-155.0,0.00010957,2]
[420517359,1776213039983,-155.0,0.00010957,2]
[420517360,1776213040015,-2230.315306,0.00010957,2]
[420517361,1776213040033,-2080.0933,0.00010958,2]
[420517362,1776213040064,-500.0,0.00010958,2]
[420517363,1776213040088,-500.0,0.00010958,2]
[420517364,1776213040111,-500.0,0.00010958,2]
[420517365,1776213040151,-500.0,0.00010958,2]
[420517366,1776213040194,-172.18901468,0.00010958,2]
[420517368,1776213040217,-511.68701496,0.00010958,2]
[420517370,1776213040238,-500.0,0.00010958,2]
[420517371,1776213040252,-500.0,0.00010958,2]
[420517372,1776213040265,-500.82056099,0.00010958,2]
[420517373,1776213040274,-559.02270499,0.00010958,2]
[420517374,1776213040295,-166.79,0.00010958,2]
[420517375,1776213040304,-808.0,0.00010958,2]
[420517376,1776213040314,-500.81989108,0.00010958,2]
[420517377,1776213040332,-500.0,0.00010958,2]
[420517378,1776213040341,-500.0,0.00010958,2]
[420517379,1776213040351,-500.0,0.00010958,2]
[420517380,1776213040360,-500.0,0.00010958,2]
[420517381,1776213040370,-500.0,0.00010958,2]
[420517382,1776213040380,-500.0,0.00010958,2]
[420517384,1776213040524,-500.23937945,0.00010958,2]
[420517386,1776213040534,-1167.9,0.00010958,2]
[420517388,1776213040544,-1040.3,0.00010958,2]
[420517390,1776213040553,-268.51465417,0.00010958,2]
[420517392,1776213040562,-500.0,0.00010958,2]
[420517394,1776213040571,-500.31222103,0.00010958,2]
[420517396,1776213040581,-500.0,0.00010958,2]
[420517397,1776213040590,-1107.69,0.00010958,2]
[420517398,1776213040599,-501.00806524,0.00010958,2]
[420517399,1776213040608,-2437.71,0.00010958,2]
[420517400,1776213040617,-500.0,0.00010958,2]
[420517401,1776213040627,-500.0,0.00010958,2]
[420517402,1776213040636,-500.0,0.00010958,2]
[420517403,1776213040645,-471.70484085,0.00010958,2]
[420517404,1776213040655,-500.0,0.00010958,2]
[420517405,1776213040664,-501.68215269,0.00010958,2]
[420517406,1776213040673,-500.0,0.00010958,2]
[420517407,1776213040682,-500.0,0.00010958,2]
[420517408,1776213040691,-500.0,0.00010958,2]
[420517409,1776213040701,-500.0,0.00010958,2]
[420517410,1776213040711,-500.0,0.00010958,2]
[420517411,1776213040720,-305.13660971,0.00010958,2]
[420517412,1776213040729,-500.0,0.00010958,2]
[420517413,1776213040739,-518.59,0.00010958,2]
[420517414,1776213040749,-500.0,0.00010958,2]
[420517415,1776213040759,-500.0,0.00010958,2]
[420517416,1776213040768,-500.0,0.00010958,2]
[420517417,1776213040778,-500.0,0.00010958,2]
[420517418,1776213040787,-500.0,0.00010958,2]
[420517419,1776213040796,-500.0,0.00010958,2]
[420517420,1776213040805,-500.0,0.00010958,2]
[420517421,1776213040815,-500.0,0.00010958,2]
[420517422,1776213040824,-500.0,0.00010958,2]
[420517423,1776213040833,-500.0,0.00010958,2]
[420517424,1776213040843,-4352.66,0.00010958,2]
[420517425,1776213040852,-500.0,0.00010958,2]
[420517427,1776213040861,-500.0,0.00010958,2]
[420517428,1776213040871,-502.45057877,0.00010958,2]
[420517429,1776213040880,-500.0,0.00010958,2]
[420517430,1776213040890,-500.0,0.00010958,2]
[420517431,1776213040899,-394.22507022,0.00010958,2]
[420517432,1776213040909,-500.0,0.00010958,2]
[420517434,1776213040919,-500.0,0.00010958,2]
[420517435,1776213040929,-3425.57,0.00010958,2]
[420517437,1776213040939,-500.0,0.00010958,2]
[420517438,1776213040948,-500.0,0.00010958,2]
[420517439,1776213040957,-2485.24,0.00010958,2]
[420517440,1776213040966,-500.0,0.00010958,2]
[420517441,1776213040975,-1607.72,0.00010958,2]
[420517442,1776213040985,-151.0,0.00010958,2]
[420517443,1776213040995,-151.0,0.00010958,2]
[420517444,1776213041003,-267.39883343,0.00010958,2]
[420517445,1776213041013,-706.17,0.00010958,2]
[420517446,1776213041025,-5211.16,0.00010958,2]
[420517447,1776213041036,-500.0,0.00010958,2]
[420517448,1776213041045,-500.0,0.00010958,2]
[420517449,1776213041054,-500.0,0.00010958,2]
[420517450,1776213041063,-2519.76,0.00010958,2]
[420517451,1776213041076,-500.0,0.00010958,2]
[420517452,1776213041086,-500.0,0.00010958,2]
[420517453,1776213041096,-5000.0,0.00010958,2]
[420517454,1776213041105,-3953.093739,0.00010958,2]
[420517455,1776213041118,-523.5,0.00010958,2]
[420517456,1776213041128,-1019.41,0.00010958,2]
[420517457,1776213041137,-2015.92,0.00010958,2]
[420517458,1776213041147,-3400.16,0.00010958,2]
[420517459,1776213041158,-4229.75,0.00010958,2]
[420517460,1776213041168,-500.0,0.00010958,2]
[420517461,1776213041177,-201.66991777,0.00010958,2]
[420517462,1776213041186,-2092.31,0.00010958,2]
[420517463,1776213041196,-500.0,0.00010958,2]
[420517464,1776213041210,-4051.34,0.00010958,2]
[420517465,1776213041219,-2928.63,0.00010958,2]
[420517466,1776213041230,-500.0,0.00010958,2]
[420517467,1776213041239,-859.26,0.00010958,2]
[420517468,1776213041253,-500.0,0.00010958,2]
[420517469,1776213041262,-500.0,0.00010958,2]
[420517470,1776213041272,-392.60038525,0.00010958,2]
[420517471,1776213041281,-500.0,0.00010958,2]
[420517472,1776213041297,-500.0,0.00010958,2]
[420517473,1776213041306,-500.0,0.00010958,2]
[420517474,1776213041317,-500.0,0.00010958,2]
[420517475,1776213041326,-500.0,0.00010958,2]
[420517476,1776213041343,-500.0,0.00010958,2]
[420517477,1776213041355,-500.0,0.00010958,2]
[420517478,1776213041364,-500.0,0.00010958,2]
[420517479,1776213041378,-8982.61,0.00010958,2]
[420517480,1776213041396,-553.9,0.00010958,2]
[420517481,1776213041407,-876.84,0.00010958,2]
[420517482,1776213041424,-3770.56,0.00010958,2]
[420517483,1776213041452,-500.0,0.00010958,2]
[420517484,1776213041474,-500.0,0.00010958,2]
[420517485,1776213041511,-2989.84,0.00010958,2]
[420517486,1776213041602,-500.0,0.00010958,2]
[420517487,1776213041681,-816.18,0.00010958,2]
[420517488,1776213041723,-719.03,0.00010958,2]
[420517489,1776213041749,-500.0,0.00010958,2]
[420517490,1776213041776,-4062.38,0.00010958,2]
[420517491,1776213041795,-4588.93,0.00010958,2]
[420517492,1776213041813,-3518.82,0.00010958,2]
[420517493,1776213041822,-747.69,0.00010958,2]
[420517494,1776213041855,-18940.98,0.00010958,2]
[420517495,1776213041870,-3155.27,0.00010958,2]
[420517496,1776213041897,-4478.58,0.00010958,2]
[420517497,1776213041910,-500.0,0.00010958,2]
[420517498,1776213041943,-4581.57,0.00010958,2]
[420517499,1776213041955,-12264.78,0.00010958,2]
[420517500,1776213041991,-1560.91,0.00010958,2]
[420517501,1776213042011,-1340.91,0.00010958,2]
[420517502,1776213042041,-641.39,0.00010958,2]
[420517503,1776213042070,-923.02,0.00010958,2]
[420517504,1776213042104,-4005.88,0.00010958,2]
[420517505,1776213042137,-798.26,0.00010958,2]
[420517506,1776213042156,-3145.09,0.00010958,2]
[420517507,1776213042196,-500.0,0.00010958,2]
[420517508,1776213042255,-4540.68,0.00010958,2]
[420517509,1776213042305,-8680.51,0.00010958,2]
[420517510,1776213042341,-200.0,0.00010959,2]
[420517511,1776213042370,-151.238552,0.00010959,2]
[420517512,1776213042387,-500.0,0.00010959,2]
[420517513,1776213042405,-500.0,0.00010959,2]
[420517514,1776213042426,-500.0,0.00010959,2]
[420517515,1776213042441,-500.0,0.00010959,2]
[420517516,1776213042463,-500.0,0.00010959,2]
[420517517,1776213042476,-500.0,0.00010959,2]
[420517518,1776213042500,-500.0,0.00010973,2]
[420517519,1776213042522,-151.0,0.00011,2]
[420517520,1776213042538,-151.0,0.00011,2]
[420517521,1776213042569,-151.0,0.00011,2]
[420517522,1776213042588,-1000.0,0.00011021,2]
[420517523,1776213042612,-1000.0,0.00011021,2]
[420517524,1776213042641,-1000.0,0.00011021,2]
[420517525,1776213042652,-1394.2532986,0.00011069,2]
[420517526,1776213042664,-151.0,0.000111,2]
[420517527,1776213042684,-151.0,0.000111,2]
[420517528,1776213042694,-151.0,0.000111,2]
[420517529,1776213042703,-151.0,0.000111,2]
[420517530,1776213042719,-195.48013001,0.00011118,2]
[420517531,1776213042731,-1500.0,0.00011168,2]
[420517532,1776213042743,-1500.0,0.00011168,2]
[420517533,1776213042752,-616.08318095,0.00011192,2]
[420517534,1776213042773,-151.0,0.000112,2]
[420517535,1776213042786,-151.0,0.000112,2]
[420517536,1776213042796,-151.0,0.000112,2]
[420517537,1776213042811,-2066.8697,0.00011232,2]
[420517538,1776213042820,-553.1884,0.00011232,2]
[420517539,1776213042834,-500.0,0.00011232,2]
[420517542,1776213042846,-500.0,0.00011232,2]
[420517544,1776213042858,-808.0,0.00011232,2]
[420517545,1776213042871,-161.47076006,0.00011232,2]
[420517547,1776213042882,-500.0,0.00011232,2]
[420517548,1776213042892,-500.0,0.00011232,2]
[420517550,1776213042902,-1167.9,0.00011232,2]
[420517552,1776213042911,-1040.3,0.00011232,2]
[420517554,1776213042923,-1107.69,0.00011232,2]
[420517556,1776213042933,-2437.71,0.00011232,2]
[420517558,1776213042943,-500.0,0.00011232,2]
[420517560,1776213042952,-500.0,0.00011232,2]
[420517561,1776213042965,-319.46873874,0.00011232,2]
[420517562,1776213042977,-500.32638506,0.00011232,2]
[420517563,1776213042988,-500.0,0.00011232,2]
[420517564,1776213042997,-500.0,0.00011232,2]
[420517565,1776213043013,-500.0,0.00011232,2]
[420517567,1776213043023,-477.29270105,0.00011232,2]
[420517568,1776213043033,-500.0,0.00011232,2]
[420517570,1776213043043,-500.0,0.00011232,2]
[420517572,1776213043053,-236.80341356,0.00011232,2]
[420517574,1776213043064,-568.25028967,0.00011232,2]
[420517576,1776213043074,-500.0,0.00011232,2]
[420517578,1776213043083,-4352.66,0.00011232,2]
[420517580,1776213043092,-188.40535098,0.00011232,2]
[420517581,1776213043101,-500.0,0.00011232,2]
[420517582,1776213043111,-527.33311185,0.00011232,2]
[420517583,1776213043121,-500.0,0.00011232,2]
[420517584,1776213043130,-3425.57,0.00011232,2]
[420517585,1776213043140,-500.0,0.00011232,2]
[420517586,1776213043151,-500.0,0.00011232,2]
[420517587,1776213043160,-2485.24,0.00011232,2]
[420517588,1776213043170,-500.0,0.00011232,2]
[420517589,1776213043179,-1607.72,0.00011232,2]
[420517590,1776213043189,-706.17,0.00011232,2]
[420517591,1776213043199,-5211.16,0.00011232,2]
[420517592,1776213043208,-500.0,0.00011232,2]
[420517593,1776213043217,-500.0,0.00011232,2]
[420517594,1776213043226,-500.0,0.00011232,2]
[420517595,1776213043238,-2519.76,0.00011232,2]
[420517596,1776213043247,-500.0,0.00011232,2]
[420517597,1776213043257,-500.0,0.00011232,2]
[420517598,1776213043267,-523.5,0.00011232,2]
[420517599,1776213043278,-1019.41,0.00011232,2]
[420517600,1776213043289,-2015.92,0.00011232,2]
[420517601,1776213043298,-3400.16,0.00011232,2]
[420517603,1776213043307,-4229.75,0.00011232,2]
[420517605,1776213043317,-500.0,0.00011232,2]
[420517606,1776213043329,-500.0,0.00011232,2]
[420517608,1776213043340,-2092.31,0.00011232,2]
[420517610,1776213043349,-4051.34,0.00011232,2]
[420517611,1776213043358,-2928.63,0.00011232,2]
[420517612,1776213043371,-500.0,0.00011232,2]
[420517613,1776213043383,-859.26,0.00011232,2]
[420517614,1776213043392,-500.0,0.00011232,2]
[420517615,1776213043401,-500.0,0.00011232,2]
[420517617,1776213043419,-500.0,0.00011232,2]
[420517618,1776213043433,-500.0,0.00011232,2]
[420517620,1776213043447,-500.0,0.00011232,2]
[420517622,1776213043468,-500.0,0.00011232,2]
[420517624,1776213043477,-500.0,0.00011232,2]
[420517625,1776213043489,-500.0,0.00011232,2]
[420517626,1776213043506,-519.02867852,0.00011232,2]
[420517627,1776213043520,-500.0,0.00011232,2]
[420517628,1776213043529,-8982.61,0.00011232,2]
[420517629,1776213043543,-553.9,0.00011232,2]
[420517630,1776213043563,-876.84,0.00011232,2]
[420517631,1776213043572,-500.0,0.00011232,2]
[420517632,1776213043584,-3770.56,0.00011232,2]
[420517633,1776213043600,-500.0,0.00011232,2]
[420517634,1776213043610,-2989.84,0.00011232,2]
[420517635,1776213043619,-500.0,0.00011232,2]
[420517636,1776213043630,-816.18,0.00011232,2]
[420517637,1776213043639,-719.03,0.00011232,2]
[420517638,1776213043649,-635.2995002,0.00011232,2]
[420517639,1776213043661,-4062.38,0.00011232,2]
[420517640,1776213043671,-4588.93,0.00011232,2]
[420517641,1776213043682,-3518.82,0.00011232,2]
[420517642,1776213043695,-747.69,0.00011232,2]
[420517643,1776213043706,-18940.98,0.00011232,2]
[420517644,1776213043715,-3155.27,0.00011232,2]
[420517645,1776213043726,-4478.58,0.00011232,2]
[420517646,1776213043743,-500.0,0.00011232,2]
[420517647,1776213043752,-4581.57,0.00011232,2]
[420517648,1776213043762,-12264.78,0.00011232,2]
[420517649,1776213043774,-1560.91,0.00011232,2]
[420517650,1776213043789,-1340.91,0.00011232,2]
[420517651,1776213043799,-641.39,0.00011232,2]
[420517652,1776213043810,-923.02,0.00011232,2]
[420517653,1776213043824,-4005.88,0.00011232,2]
[420517654,1776213043835,-798.26,0.00011232,2]
[420517655,1776213043844,-3145.09,0.00011232,2]
[420517656,1776213043854,-633.50310771,0.00011232,2]
[420517657,1776213043864,-4540.68,0.00011232,2]
[420517658,1776213043873,-8680.51,0.00011232,2]
[420517659,1776213043883,-1495.56187929,0.00011505,2]
[420517660,1776213043893,-2066.8697,0.00011506,2]
[420517661,1776213043902,-500.0,0.00011506,2]
[420517662,1776213043912,-500.0,0.00011506,2]
[420517663,1776213043923,-808.0,0.00011506,2]
[420517664,1776213043933,-500.0,0.00011506,2]
[420517665,1776213043942,-500.0,0.00011506,2]
[420517666,1776213043954,-1167.9,0.00011506,2]
[420517667,1776213043965,-1040.3,0.00011506,2]
[420517668,1776213043974,-1107.69,0.00011506,2]
[420517669,1776213043983,-2437.71,0.00011506,2]
[420517670,1776213043992,-500.0,0.00011506,2]
[420517671,1776213044006,-500.0,0.00011506,2]
[420517672,1776213044016,-181.65171622,0.00011506,2]
[420517673,1776213044026,-509.40093414,0.00011506,2]
[420517674,1776213044149,-500.0,0.00011506,2]
[420517675,1776213044161,-500.0,0.00011506,2]
[420517676,1776213044175,-500.0,0.00011506,2]
[420517677,1776213044187,-500.0,0.00011506,2]
[420517678,1776213044201,-4352.66,0.00011506,2]
[420517679,1776213044215,-500.0,0.00011506,2]
[420517680,1776213044226,-493.58479453,0.00011506,2]
[420517681,1776213044240,-3425.57,0.00011506,2]
[420517682,1776213044256,-500.0,0.00011506,2]
[420517683,1776213044265,-500.0,0.00011506,2]
[420517684,1776213044278,-2485.24,0.00011506,2]
[420517685,1776213044291,-500.0,0.00011506,2]
[420517686,1776213044303,-1607.72,0.00011506,2]
[420517687,1776213044314,-706.17,0.00011506,2]
[420517688,1776213044328,-5211.16,0.00011506,2]
[420517689,1776213044338,-500.0,0.00011506,2]
[420517690,1776213044347,-500.0,0.00011506,2]
[420517691,1776213044358,-500.0,0.00011506,2]
[420517692,1776213044377,-2519.76,0.00011506,2]
[420517693,1776213044387,-500.0,0.00011506,2]
[420517694,1776213044397,-500.0,0.00011506,2]
[420517695,1776213044412,-523.5,0.00011506,2]
[420517696,1776213044430,-1019.41,0.00011506,2]
[420517697,1776213044439,-2015.92,0.00011506,2]
[420517698,1776213044451,-3400.16,0.00011506,2]
[420517699,1776213044472,-4229.75,0.00011506,2]
[420517700,1776213044484,-500.0,0.00011506,2]
[420517701,1776213044493,-500.0,0.00011506,2]
[420517702,1776213044516,-2092.31,0.00011506,2]
[420517703,1776213044528,-4051.34,0.00011506,2]
[420517704,1776213044539,-2928.63,0.00011506,2]
[420517705,1776213044554,-500.0,0.00011506,2]
[420517706,1776213044563,-859.26,0.00011506,2]
[420517707,1776213044576,-500.0,0.00011506,2]
[420517708,1776213044592,-500.0,0.00011506,2]
[420517709,1776213044606,-500.0,0.00011506,2]
[420517710,1776213044618,-500.0,0.00011506,2]
[420517711,1776213044636,-500.0,0.00011506,2]
[420517712,1776213044655,-500.0,0.00011506,2]
[420517713,1776213044664,-500.0,0.00011506,2]
[420517714,1776213044681,-500.0,0.00011506,2]
[420517715,1776213044700,-500.0,0.00011506,2]
[420517716,1776213044711,-8982.61,0.00011506,2]
[420517717,1776213044732,-553.9,0.00011506,2]
[420517718,1776213044743,-876.84,0.00011506,2]
[420517719,1776213044753,-500.0,0.00011506,2]
[420517720,1776213044768,-3770.56,0.00011506,2]
[420517721,1776213044781,-500.0,0.00011506,2]